Cogmind - Beta 15 @@@ ROGUE MODE // 2025.05.06 @ 20:04:58 Player: Anting Result: Destroyed by VL-TL3(R) with Subdweller Machine Gun Performance ------------- Evolutions (0) 0 Regions Visited (2) 400 Robots Destroyed (16) 80 Value Destroyed (431) 431 Prototype IDs (0) 0 Alien Tech Used (0) 0 Bonus (-68) -68 TOTAL SCORE: 843 Bonus ------- Friendly Fire -68 Cogmind --------- Core Integrity 0/250 Matter 138/300 Energy 250/250 System Corruption 0% Temperature Cool (0) Movement Treading (360) Ox2 Location -10/Subcaves Parts ------- > --- POWER (1) -------- Ion Engine > --- PROPULSION (2) --- Spiked Treads > --- UTILITY (2) ------ High-capacity Storage Unit Targeting Computer > --- WEAPON (2) ------- Medium Laser Light Assault Rifle > --- INVENTORY (20) --- Ion Engine Subdweller Power Source Aluminum Leg Aluminum Leg Wheel Wheel Compact Wheel Subdweller Monowheel Subdweller Monowheel Huge Storage Unit Signal Interpreter Hacking Suite Peak State ------------ > --- POWER ------------ Ion Engine > --- PROPULSION ------- Light Treads Spiked Treads > --- UTILITY ---------- High-capacity Storage Unit Targeting Computer > --- WEAPON ----------- Light Assault Rifle Subdweller Machine Gun > --- INVENTORY -------- Ion Engine Subdweller Power Source Aluminum Leg Aluminum Leg Wheel Wheel Compact Wheel Subdweller Monowheel Subdweller Monowheel Huge Storage Unit Signal Interpreter Hacking Suite Medium Laser Assault Rifle Light Assault Rifle [Rating: 11] Favorites ----------- Power Ion Engine Engine Ion Engine Propulsion Light Treads Treads Light Treads Leg Aluminum Leg Utility Targeting Computer Storage Large Storage Unit Processor Targeting Computer Weapon Light Assault Rifle Energy Gun Medium Laser Ballistic Gun Light Assault Rifle Launcher Subdweller Shrapnel Launcher Build | -11 -10 -10 ------- Run | Yrd Mat Sub Slots Evolved . | . . . Power . | . . . Propulsion . | . . . Utility . | . . . Weapon . | . . . Parts Attached 16 | 7 3 6 Power 1 | 1 . . Engine 1 | 1 . . Core . | . . . Reactor . | . . . Propulsion 4 | 3 . 1 Treads 3 | 2 . 1 Leg 1 | 1 . . Wheel . | . . . Hover . | . . . Flight . | . . . Utility 5 | 1 3 1 Device . | . . . Storage 4 | 1 2 1 Processor 1 | . 1 . Hackware . | . . . Protection . | . . . Artifact . | . . . Weapon 6 | 2 . 4 Energy Gun 1 | . . 1 Energy Cannon . | . . . Ballistic Gun 4 | 2 . 2 Ballistic Cannon . | . . . Launcher 1 | . . 1 Special Weapon . | . . . Impact Weapon . | . . . Slashing Weapon . | . . . Piercing Weapon . | . . . Special Melee Weapon . | . . . Unidentified Prototypes . | . . . Parts Lost 5 | . 1 4 Power . | . . . Propulsion 2 | . 1 1 Utility . | . . . Weapon 3 | . . 3 Highest Loss Streak 4 | . 1 4 To Critical Strikes . | . . . Average Backups 12 | 3 11 14 Power 1 | . 1 1 Propulsion 5 | 2 4 6 Utility 3 | . 3 3 Weapon 2 | . 1 2 Tool/Special . | . . . Unused Backups 11 | . . 11 Power 2 | . . 2 Propulsion 6 | . . 6 Utility 3 | . . 3 Weapon . | . . . Tool/Special . | . . . Average Slot Usage (%) 96 | . 92 99 Engine 14 | . 14 14 Treads 26 | . 26 26 Leg 1 | . . 1 Storage 14 | . 14 14 Processor 10 | . 7 14 Ballistic Gun 22 | . 28 17 Launcher 4 | . . 10 Peak Build Rating 11 | 6 8 11 Average Rating 8 | 4 7 10 On Entrance 4 | . 6 8 Naked Turns . | . . . Heaviest Build 54 | 13 28 54 Greatest Support 40 | 40 40 40 Greatest Overweight (x) 1 | 1 1 1 Average Overweight (x) . | . . . Largest Inventory Capacity 20 | 8 15 20 Average Capacity 16 | 7 14 19 Most Carried 16 | 6 13 16 Average Carried 12 | 3 11 14 Final Capacity 20 | 8 15 20 Final Carried 12 | 6 12 12 Class Distribution -------------------- 100% | Mutant Dominant Class ---------------- Mutant | -10/Materials Mutant | -10/Subcaves Resources | -11 -10 -10 ----------- Run | Yrd Mat Sub Matter Collected 519 | 202 143 174 Remotely . | . . . Salvage Created 449 | . 246 203 Parts 33 | . 23 10 Haulers Intercepted . | . . . Recyclers Shooed 1 | . 1 . Parts Field Recycled . | . . . Retrieved Matter . | . . . Parts Self-Destructed . | . . . Prevented . | . . . Kills | -11 -10 -10 ------- Run | Yrd Mat Sub Combat Hostiles Destroyed 15 | . 9 6 Guns 11 | . 9 2 AOE 4 | . . 4 Classes Destroyed 5 | . 3 2 Operator 1 | . 1 . Swarmer 6 | . 6 . Grunt 3 | . 3 . Subdweller 6 | . . 6 Scientist 1 | . . 1 Best Kill Streak 3 | . 3 2 Combat Bots Only 3 | . 3 2 Max Kills in Single Turn 2 | . 2 1 Gunslinging 1 | . 1 . Exploded 1 | . . 1 Melee . | . . . Uniques/NPCs Destroyed . | . . . Combat | -11 -10 -10 -------- Run | Yrd Mat Sub Hostile Shots Fired 91 | . 50 41 Missed 21 | . 10 11 Hits 70 | . 40 30 Projectile 70 | . 40 30 Critical Strikes 2 | . 2 . Damage Taken 1081 | . 377 704 Core 268 | . 56 212 Absorbed by Shields . | . . . Core Remaining (%) 100 | 100 . . Volleys Fired 62 | . 30 32 Largest 2 | . 2 2 Hottest 70 | . 40 70 Shots Fired 110 | . 60 50 Gun 103 | . 60 43 Cannon . | . . . Launcher 7 | . . 7 Special . | . . . Kinetic 105 | . 60 45 Thermal 5 | . . 5 Explosive . | . . . Electromagnetic . | . . . Robot Hit Streak 17 | . 9 17 Robot Miss Streak 4 | . 4 1 Penetration Max . | . . . Secondary Targets 1 | . 1 . Max Gunslinging Chain 1 | . 1 . Shots Hit Robots 71 | . 36 35 Core Hits 33 | . 18 15 Critical Kills . | . . . Critical Parts Destroyed . | . . . Critical Strikes . | . . . Melee Attacks . | . . . Impact . | . . . Slashing . | . . . Piercing . | . . . Sneak Attacks . | . . . Combat Hostiles . | . . . Follow-up Attacks . | . . . Damage Inflicted 1148 | . 389 759 Guns 737 | . 367 370 Cannons . | . . . Explosions 389 | . . 389 Melee . | . . . Ramming 22 | . 22 . Kinetic 1063 | . 367 696 Thermal 63 | . . 63 Explosive . | . . . Electromagnetic . | . . . Impact . | . . . Slashing . | . . . Piercing . | . . . Highest Corruption . | . . . Average Corruption . | . . . Corruption Purged . | . . . Corruption Blocked . | . . . Overload Shots . | . . . Overflow Damage 35 | . . 35 Projectiles . | . . . Explosions 35 | . . 35 Melee . | . . . Knockbacks . | . . . Impact . | . . . Kinetic . | . . . Secondary . | . . . Self-Inflicted Damage 105 | . . 105 Shots 2 | . . 2 Rammed 5 | . 5 . Targets Rammed 5 | . 5 . Kicked . | . . . Crushed . | . . . Highest Temperature 52 | . 52 . Average Temperature 28 | . 28 . Received Heat Transfer 180 | . 108 72 Siege Activations . | . . . Martial Activations . | . . . Shielding Activations . | . . . Robots Disrupted . | . . . Combat Hostiles . | . . . Robots Corrupted . | . . . Combat Hostiles . | . . . Parts Fried . | . . . Impact Corruptions . | . . . Robots Melted . | . . . Combat Hostiles . | . . . Parts Melted . | . . . Heat Transferred 185 | . . 185 Parts Sabotaged . | . . . Parts Stolen . | . . . Parts Stripped . | . . . Power Chain Reactions . | . . . Alert | -11 -10 -10 ------- Run | Yrd Mat Sub Maximum Alert Level . | . . . Low Security (%) 100 | 100 100 . Level 1 . | . . . Level 2 . | . . . Level 3 . | . . . Level 4 . | . . . Level 5 . | . . . High Security . | . . . Max Security . | . . . Peak Influence 138 | . 138 . Initial . | . . . Average 30 | . 33 . Influence Increases 295 | . 295 . Destroy 0b10 Robot/C 180 | . 180 . Destroy 0b10 Robot/NC 5 | . 5 . Destroy Leader 50 | . 50 . Lose Combat Pursuer 60 | . 60 . Influence Decreases 295 | . 295 . Time Decay 295 | . 295 . Squads Dispatched 3 | . 3 . Investigation . | . . . Extermination . | . . . Reinforcement 3 | . 3 . Assault . | . . . Garrison . | . . . Intercept . | . . . Searches Triggered . | . . . Construction Impeded . | . . . Haulers Reinforced . | . . . Active Scanning Responses . | . . . Cargo Convoy Interrupts . | . . . Stealth | -11 -10 -10 --------- Run | Yrd Mat Sub Distress Signals 2 | . 2 . Communications Jammed . | . . . Distress Signals . | . . . Times Spotted 34 | . 27 7 Peak Tracking Total 5 | . 5 2 Tactical Retreats 3 | . 3 . Traps | -11 -10 -10 ------- Run | Yrd Mat Sub Traps Triggered . | . . . Indirectly . | . . . Trap Hack Attempts . | . . . Triggered . | . . . Disarmed . | . . . Reprogrammed . | . . . Reused . | . . . Traps Extracted . | . . . Installed . | . . . Triggered . | . . . Machines | -11 -10 -10 ---------- Run | Yrd Mat Sub Machines Disabled . | . . . Max in Single Turn . | . . . Machines Repaired . | . . . Machines Dismantled . | . . . Machines Sabotaged . | . . . Overloaded Fab Kills . | . . . Hacking | -11 -10 -10 --------- Run | Yrd Mat Sub Machines Accessed . | . . . Terminals . | . . . Fabricators . | . . . Repair Stations . | . . . Recycling Units . | . . . Scanalyzers . | . . . Garrison Access . | . . . Total Hacks . | . . . Successful . | . . . Failed . | . . . Catastrophic . | . . . Database Lockouts . | . . . Manual . | . . . Terminals . | . . . Fabricators . | . . . Repair Stations . | . . . Recycling Units . | . . . Scanalyzers . | . . . Garrison Access . | . . . Terminal Hacks . | . . . Fabricator Hacks . | . . . Repair Station Hacks . | . . . Recycling Unit Hacks . | . . . Scanalyzer . | . . . Garrison Access Hacks . | . . . Unauthorized Hacks . | . . . Terminals . | . . . Fabricators . | . . . Repair Stations . | . . . Recycling Units . | . . . Scanalyzers . | . . . Garrison Access . | . . . Data Cores Recovered . | . . . Used . | . . . Hacking Detections . | . . . Full Trace Events . | . . . Feedback Events . | . . . Feedback Blocked . | . . . Robot Schematics Acquired . | . . . Robots Built . | . . . Authchips . | . . . Time . | . . . Total Robot Build Rating . | . . . Part Schematics Acquired . | . . . Parts Built . | . . . Authchips . | . . . Time . | . . . Total Part Build Rating . | . . . Parts Repaired . | . . . Time . | . . . Parts Recycled . | . . . Recycled Matter . | . . . Retrieved Matter . | . . . Retrieved Components . | . . . Parts Scanalyzed . | . . . Part Schematics Acquired . | . . . Parts Damaged . | . . . Bothacking | -11 -10 -10 ------------ Run | Yrd Mat Sub Used RIF Installer . | . . . Robots Hacked . | . . . Non-combat . | . . . Combat . | . . . Robot Hacks Applied . | . . . Relay Couplers Released . | . . . Fabnet Peak Effective % . | . . . Robots Rewired . | . . . Allies Hacked . | . . . Hacks Repelled . | . . . Allies | -11 -10 -10 -------- Run | Yrd Mat Sub Total Allies . | . . . Largest Group . | . . . Highest-Rated Group . | . . . Highest-Rated Ally . | . . . Total Orders . | . . . Ally Attacks . | . . . Total Damage . | . . . Kills . | . . . Allies Corrupted . | . . . Allies Melted . | . . . Intel | -11 -10 -10 ------- Run | Yrd Mat Sub Active Infowar (turns) . | . . . Robot Analysis Total . | . . . Derelict Logs Recovered . | . . . Drone Launches . | . . . Drone Recoveries . | . . . Exploration | -11 -10 -10 ------------- Run | Yrd Mat Sub Turns Passed 2334 | 113 1137 1084 Spaces Moved 957 | 63 522 372 Core 5 | 5 . . Treads 932 | 38 522 372 Legs 20 | 20 . . Wheels . | . . . Hover . | . . . Flight . | . . . Fastest Speed 50 | 50 160 160 Average Speed 196 | 154 164 249 Slowest Speed 250 | 190 240 250 Overloaded Moves . | . . . Propulsion Burnouts . | . . . Robots Hopped . | . . . Potential Cave-ins . | . . . Cave-ins Triggered . | . . . Exploration Rate (%) 43 | 6 89 35 Regions Visited 2 Branch Regions 1 Pre-discovered Areas . | . . . Known Exits Taken . | . . . Unknown Exits Taken 2 | 1 1 . Scrap Searched . | . . . Spaces Dug 41 | . . 41 Terrain Destroyed 86 | . . 86 Melee . | . . . Projectile . | . . . AOE 86 | . . 86 Terrain Rammed . | . . . Walls Destroyed . | . . . Machines Disabled . | . . . Actions | -11 -10 -10 --------- Run | Yrd Mat Sub Total 1300 | 77 742 481 Wait 234 | . 174 60 Move 955 | 62 521 372 Hop . | . . . Pick Up 20 | 7 7 6 Fast Attach 6 | 5 1 . Attach 8 | 2 2 4 Detach 1 | 1 . . Swap 5 | . 1 4 Drop 4 | . 1 3 Fire 62 | . 30 32 Melee . | . . . Ram . | . . . Kick . | . . . Crush 5 | . 5 . Escape Stasis . | . . . Rewire . | . . . Trap . | . . . Miscellaneous . | . . . Route ------- -11/Scrapyard -10/Materials (discovered 5 exits: [*Mat x3] / [*Min] / [*Sub]) -10/Subcaves (discovered 1 exit: [*Mat]) History --------- Turn | Location | Event 25 | -11/Scrapyard | Discovered new exit (range 15) 114 | -11/Scrapyard | Entered Materials 285 | -10/Materials | Discovered new exit (range 3) 311 | -10/Materials | Build established: Mutant 391 | -10/Materials | Discovered new exit (range 6) 508 | -10/Materials | Discovered new exit (range 15) 786 | -10/Materials | Discovered new exit (range 6) 1241 | -10/Materials | Discovered new exit (range 5) 1251 | -10/Materials | Entered Subcaves 1252 | -10/Subcaves | Approached by a straggling Scientist 1337 | -10/Subcaves | Core integrity fell below 50% 1624 | -10/Subcaves | Discovered new exit (range 13) 1636 | -10/Subcaves | Shifting Twisted Machinery released Flamer 1642 | -10/Subcaves | Shifting Twisted Machinery released Barrage Gun 1653 | -10/Subcaves | Ambushed by Subdwellers from Twisted Machinery 2300 | -10/Subcaves | Core integrity fell below 20% 2335 | -10/Subcaves | Destroyed by VL-TL3(R) with Subdweller Machine Gun Last Messages --------------- Barrage Gun falls loose from the Twisted Machinery. 01653_ KB-8IZ(R) emerges from the Twisted Machinery. 01654_ FY-QS0(R) destroyed. 01656_ KB-8IZ(R) destroyed. 01675_ Acquired 29 matter. 01745_ K1-BI1(R) destroyed. 01754_ Subatomizers dissect the Sub. Monowheel. 01772_ Acquired 24 matter. 02287_ 9E-WSH(u) builds Twisted Machinery. 02299_ Sub. Shrapnel Launcher destroyed. 02299_ Destroyed Sub. Shrapnel Launcher. 02299_ Lgt. Assault Rifle destroyed. 02299_ Destroyed Lgt. Assault Rifle. 02299_ W7-PUQ(R) destroyed. 02306_ Acquired 20 matter. 02308_ Subatomizers dissect the Sub. Power Source. 02319_ Assault Rifle destroyed. 02322_ Subatomizers dissect the Sub. Power Source. 02333_ Lgt. Treads destroyed. 02335_ Subatomizers dissect the Sub. Power Source. Map ----- +----------------------------------------------------+ | ?????????# #???????????????????????? | | ?????????## #???????????????????????? | | ??????????# #???????????????????????? | | ?????????## #???????????????????????? | | ????????## ### #???????????????????????? | | ??????### #??? #???????????????????????? | | ???#### ## #?????????????????????????????? | | ???# #### ##????????????????????????????? | | ??## ###### ##???????????????????????????? | | ??# ##### #???????????????????????????? | | ??# #### #???????????????????????????? | | ??# ## #???????????????????????????? | | ??# ## #???????????????????????????? | | ??## ## ##???????????????????????????? | | ???## #### ###????????????????????????????? | | ????## ##?## ##???#??????????????????????????? | | #########?## ##??? #?#####???????????????????? | | ## #### #####? ## ##"#????????????????? | | ## #"# """##???????????????? | | ## """ """ """ "##??????????????? | | # """""" #" # # """""?????????????? | | ########### ##"""""""# ;;; """ ?????????? | | #?#####????###"####" ;;;; " $??????????? | | ### ######?# ;#### ; R #?????????????? | | ### ### ;;; #??????????????? | | ## " *@& ; #??????????????? | | # # ;# #??????????????? | | #### #????????????????? | | ## ## #??#### ;;; ; #????????????????? | | ?###### ##?????## #; ;; #### ##????????????????? | | ??????###???????####;;#####????#?????????????????? | | ???????????????????###???????????????????????????? | | ?????????????????????????????????????????????????? | | ?????????????????????????????????????????????????? | | ?????????????????????????????????????????????????? | | ?????????????????????????????????????????????????? | | ?????????????????????????????????????????????????? | | ?????????????????????????????????????????????????? | | ?????????????????????????????????????????????????? | | ?????????????????????????????????????????????????? | | ?????????????????????????????????????????????????? | | ?????????????????????????????????????????????????? | | ?????????????????????????????????????????????????? | | ?????????????????????????????????????????????????? | | ?????????????????????????????????????????????????? | | | | | | | | | | | +----------------------------------------------------+ Best States ------------- Heat Dissipation 25 Energy Generation 10 Energy Capacity 250 Matter Stores 285 Matter Capacity 300 Sight Range 16 Terrain Scan Density 10 Evasion (%) 45 Targeting Accuracy 5 Recoil Reduction 2 Item Schematics ----------------- None Robot Schematics ------------------ None Fabricated ------------ Nothing Repaired ---------- Nothing Alien Tech Used ----------------- None Achievements -------------- None Challenges ------------ None Game ------ Seed AntigravScrapMiniperforator Manual? 0 Play Time 00:10:44 Cumulative 240.7 hours Start 2025.05.06 @ 19:56:08 End 2025.05.06 @ 20:04:58 Sessions 1 Manual Loads 0 Difficulty Rogue Special Mode None Game No. 159 Rogue 159 Adventurer 0 Explorer 0 Win Type - Total 13 Types 6/0/5/1/0/0/0/1/0/0 Lore% 75 Gallery% 69 Achievement% 73 Wizard Run 0 Options --------- Layout 0 ASCII 0 Keyboard 0 Movement Mouse Keybinds 0 Fullscreen 2 Font 24/Smallcaps Map View 76x50 Zoom Use 0% Tactical HUD 1 Map Filters NONE Filters NONE Steam 1 RUN: ac9559ea-7fb5-4eba-b952-180be7cf4779